bitfinex/quotes_SOLUSD_20241118
["timestamp","ask_amount","ask_price","bid_price","bid_amount"]
[1731896270591,23.902374,238.47,238.4,16.2121496]
[1731896270902,23.902374,238.47,238.4,20.4066496]
[1731896271879,23.902374,238.45,238.38,10.4874]
[1731896272497,23.902374,238.45,238.38,30.8944496]
[1731896272684,0.12549,238.45,238.38,30.8944496]
[1731896272995,23.776884,238.47,238.4,16.2121496]
[1731896274297,0.12549,238.46,238.4,16.2121496]
[1731896274553,0.09367462,238.45,238.38,26.6995496]
[1731896274702,23.87055862,238.45,238.38,10.4874]
[1731896274907,0.12549,238.44,238.38,10.4874]
[1731896275115,23.87055862,238.41,238.34,16.2121496]
[1731896275312,0.12549,238.4,238.34,16.2121496]
[1731896275609,0.12549,238.43,238.33,14.6851]
[1731896275610,23.776884,238.43,238.38,16.2121496]
[1731896275904,0.12549,238.44,238.38,16.2121496]
[1731896276105,0.12549,238.45,238.38,16.2121496]
[1731896276702,0.12549,238.45,238.38,20.4069496]
[1731896279213,0.12549,238.43,238.37,10.4877]
[1731896279597,0.12549,238.43,238.37,14.6828]
[1731896279794,16.2121496,238.46,238.38,16.2121496]
[1731896280015,23.902374,238.46,238.38,16.2121496]
[1731896280308,23.902374,238.46,238.39,4.1948]
[1731896280512,44.3081236,238.46,238.39,4.1948]
[1731896282500,0.12549,238.42,238.37,14.6828]
[1731896282696,0.12549,238.42,238.37,10.4877]
[1731896282897,16.2121496,238.46,238.38,16.2121496]
[1731896283210,0.12549,238.46,238.4,16.2121496]
[1731896283899,0.21916462,238.45,238.38,16.2121496]
[1731896284223,0.12549,238.42,238.37,14.6828]
[1731896284422,0.12549,238.42,238.37,10.4877]
[1731896284614,0.12549,238.42,238.38,16.2121496]
[1731896285289,0.09367462,238.44,238.38,16.2121496]
[1731896285494,0.21916462,238.44,238.38,16.2121496]
[1731896286109,0.21916462,238.44,238.37,14.6828]
[1731896286110,0.21916462,238.42,238.37,10.4877]
[1731896286491,0.09367462,238.4,238.32,20.62714486]
[1731896286725,0.09367462,238.38,238.32,20.62714486]
[1731896286926,0.09367462,238.38,238.25,15.1883]
[1731896286927,0.21916462,238.36,238.29,4.1964]
[1731896287216,23.902374,238.36,238.3,10.13744486]
[1731896287428,23.776884,238.38,238.33,10.13744486]
[1731896287793,23.776884,238.38,238.34,4.1956]
[1731896288296,23.776884,238.38,238.37,10.13744486]
[1731896288815,15.3116,238.44,238.37,10.13744486]
[1731896289616,6.0571,238.48,238.42,10.13744486]
[1731896290124,0.09367462,238.47,238.4,10.13744486]
[1731896290702,0.21916462,238.47,238.4,10.13744486]
[1731896290906,23.99604862,238.47,238.4,10.13744486]
[1731896291137,0.09367462,238.42,238.34,20.62644486]
[1731896291318,24.12153862,238.42,238.34,20.62644486]
[1731896291523,0.09367462,238.4,238.34,20.62644486]
[1731896291703,23.99604862,238.4,238.34,24.82204486]
[1731896292024,23.99604862,238.4,238.34,20.62644486]
[1731896292317,23.99604862,238.4,238.34,10.489]
[1731896292521,23.99604862,238.4,238.34,14.6846]
[1731896293314,0.34465462,238.41,238.34,24.82204486]
[1731896293523,0.21916462,238.41,238.34,24.82204486]
[1731896294844,0.09367462,238.39,238.34,20.62644486]
[1731896295010,0.21916462,238.39,238.34,10.489]
[1731896295711,0.12549,238.4,238.35,10.13744486]
[1731896296034,0.12549,238.41,238.35,10.13744486]
[1731896296242,0.21916462,238.41,238.35,10.13744486]
[1731896296404,0.21916462,238.41,238.35,14.33284486]
[1731896296608,0.21916462,238.41,238.35,4.1954]
[1731896297544,0.21916462,238.41,238.35,10.13744486]
[1731896298810,4.1932,238.48,238.39,10.13744486]
[1731896299019,4.1932,238.48,238.41,10.13744486]
[1731896299404,0.09367462,238.47,238.41,10.13744486]
[1731896299828,4.1932,238.48,238.41,10.13744486]
[1731896300224,24.12153862,238.47,238.41,10.13744486]
[1731896300633,34.25898348,238.47,238.39,10.13744486]
[1731896300815,23.99604862,238.44,238.37,10.13744486]
[1731896301814,0.21916462,238.45,238.38,4.1949]
[1731896302011,10.35660948,238.43,238.33,10.13744486]
[1731896302340,0.21916462,238.41,238.35,10.13744486]
[1731896303637,0.09367462,238.39,238.32,10.49]
[1731896303944,0.09367462,238.37,238.32,10.49]
[1731896304111,0.21916462,238.37,238.32,10.49]
[1731896304311,0.21916462,238.37,238.31,10.13744486]
[1731896305059,0.21916462,238.37,238.3,4.1963]
[1731896305712,23.776884,238.36,238.3,4.1963]
[1731896305916,0.12549,238.35,238.3,4.1963]
[1731896306840,0.12549,238.35,238.31,10.13744486]
[1731896307058,23.99604862,238.37,238.31,10.13744486]
[1731896308028,15.2388,238.45,238.35,10.13744486]
[1731896308232,15.2388,238.45,238.39,10.13744486]
[1731896308442,16.75104486,238.49,238.41,10.13744486]
[1731896308443,6.6136,238.49,238.41,10.13744486]
[1731896308644,10.8067,238.49,238.41,10.13744486]
[1731896309031,0.09367462,238.48,238.41,10.13744486]
[1731896309430,20.94414486,238.49,238.41,10.13744486]
[1731896309635,10.13744486,238.45,238.36,10.13744486]
[1731896309852,0.09367462,238.44,238.36,10.13744486]
[1731896310054,10.13744486,238.45,238.36,10.13744486]
[1731896310055,0.09367462,238.42,238.36,10.13744486]
[1731896310445,0.09367462,238.42,238.34,10.13744486]
[1731896310653,24.12153862,238.42,238.34,10.13744486]
[1731896311438,0.09367462,238.4,238.33,4.1957]
[1731896311658,0.09367462,238.4,238.32,10.13744486]
[1731896311659,24.12153862,238.4,238.32,10.13744486]
[1731896313269,24.12153862,238.38,238.32,10.13744486]
[1731896314050,24.12153862,238.38,238.31,14.6866]
[1731896314454,28.31653862,238.38,238.32,10.13744486]
[1731896314861,0.12549,238.39,238.34,10.13744486]
[1731896315361,4.31969,238.42,238.34,10.13744486]
[1731896315571,0.09367462,238.41,238.34,10.13744486]
[1731896315880,4.194,238.44,238.36,10.13744486]
[1731896316080,10.13744486,238.45,238.36,10.13744486]
[1731896316246,4.1937,238.46,238.38,10.13744486]
[1731896316562,0.09367462,238.45,238.38,14.33234486]
[1731896316866,10.13744486,238.47,238.4,10.13744486]
[1731896317073,16.75104486,238.49,238.4,10.13744486]
[1731896317366,0.09367462,238.48,238.4,10.13744486]
[1731896317763,0.09367462,238.48,238.38,14.6823]
[1731896317764,0.09367462,238.46,238.38,20.62484486]
[1731896317947,0.09367462,238.46,238.38,10.13744486]
[1731896318151,10.13744486,238.47,238.26,27.76723375]
[1731896318152,24.12153862,238.42,238.34,14.33304486]
[1731896318353,24.12153862,238.42,238.34,10.13744486]
[1731896318553,24.12153862,238.4,238.34,10.13744486]
[1731896319139,24.12153862,238.4,238.32,10.13744486]
[1731896320254,0.09367462,238.36,238.3,10.13744486]
[1731896320458,0.09367462,238.34,238.3,10.13744486]
[1731896320647,0.21916462,238.34,238.3,10.13744486]
[1731896321479,23.776884,238.35,238.32,10.13744486]
[1731896321648,16.5969,238.4,238.34,10.13744486]
[1731896322351,4.1941,238.43,238.36,10.13744486]
[1731896322550,4.1941,238.43,238.36,14.33274486]
[1731896322751,14.33124486,238.45,238.36,24.82104486]
[1731896323355,16.5969,238.46,238.38,10.13744486]
[1731896323553,20.94414486,238.49,238.4,10.13744486]
[1731896323968,0.09367462,238.48,238.4,10.13744486]
[1731896324753,0.09367462,238.46,238.4,10.13744486]
[1731896324955,0.12549,238.45,238.4,10.13744486]
[1731896325355,16.75104486,238.49,238.4,24.81844486]
[1731896325559,10.13744486,238.49,238.41,10.13744486]
[1731896325768,0.09367462,238.46,238.39,10.13744486]
[1731896326073,0.09367462,238.46,238.35,14.6841]
[1731896326074,0.09367462,238.46,238.37,10.13744486]
[1731896326450,0.09367462,238.44,238.35,14.6841]
[1731896326656,24.12153862,238.4,238.29,14.6877]
[1731896326876,24.12153862,238.4,238.32,10.13744486]
[1731896327958,24.12153862,238.4,238.32,14.33344486]
[1731896328180,28.31623862,238.4,238.32,14.33344486]
[1731896328880,28.31623862,238.4,238.32,10.13744486]
[1731896329256,0.09367462,238.38,238.3,10.13744486]
[1731896329457,24.12153862,238.38,238.3,10.13744486]
[1731896329981,28.31663862,238.38,238.27,4.1968]
[1731896330168,24.12153862,238.36,238.29,10.13744486]
[1731896330366,24.12153862,238.36,238.27,10.13744486]
[1731896330690,24.12153862,238.34,238.27,10.13744486]
[1731896331586,24.12153862,238.34,238.27,14.33424486]
[1731896332178,28.31723862,238.34,238.27,14.33424486]
[1731896332783,28.31723862,238.34,238.27,10.13744486]
[1731896340373,0.09367462,238.32,238.25,10.13744486]
[1731896340573,0.09367462,238.32,238.24,10.4934]
[1731896340574,24.12153862,238.3,238.24,10.4934]
[1731896341175,23.99604862,238.3,238.24,10.4934]
[1731896341374,0.12549,238.3,238.27,10.13744486]
[1731896341675,0.21916462,238.3,238.25,10.13744486]
[1731896341866,0.12549,238.29,238.24,10.4934]
[1731896342693,23.902374,238.29,238.24,10.4934]
[1731896342994,0.09367462,238.27,238.23,10.13744486]
[1731896343168,0.21916462,238.27,238.23,10.13744486]
[1731896348378,23.99604862,238.27,238.23,10.13744486]
[1731896348574,23.99604862,238.27,238.22,0.4503692]
[1731896348575,0.21916462,238.25,238.22,0.4503692]
[1731896350401,23.776884,238.24,238.22,0.4503692]
[1731896350604,0.12549,238.23,238.22,0.4503692]
[1731896354907,23.99604862,238.23,238.22,0.4503692]
[1731896355108,24.12153862,238.23,238.22,0.4503692]
[1731896356897,34.25898348,238.23,238.22,0.4503692]
[1731896357198,40.39468348,238.23,238.22,0.4503692]
[1731896358286,30.25723862,238.23,238.22,0.4503692]
[1731896362706,0.09367462,238.2,238.1,10.13744486]
[1731896363036,0.34465462,238.17,238.08,24.83794486]
[1731896363315,0.34465462,238.17,238.08,20.63774486]
[1731896363519,0.09367462,238.15,238.08,20.63774486]
[1731896363725,0.34465462,238.15,238.08,20.63774486]
[1731896364116,0.09367462,238.08,238.01,10.5035]
[1731896364322,0.34465462,238.06,237.98,10.60459906]
[1731896365012,23.902374,238.06,238.02,10.13744486]
[1731896365418,4.2001,238.09,237.98,4.6689542]
[1731896365419,0.09367462,238.01,237.98,0.4671542]
[1731896365621,10.23111948,237.99,237.98,0.4671542]
[1731896365835,0.34465462,237.97,237.86,10.13744486]
[1731896366123,0.34465462,237.88,237.81,10.13744486]
[1731896366526,0.34465462,237.88,237.79,10.13744486]
[1731896367022,4.54855462,237.88,237.79,10.13744486]
[1731896367235,0.34465462,237.86,237.79,10.13744486]
[1731896368027,24.12153862,237.86,237.79,10.13744486]
[1731896368214,24.12153862,237.86,237.75,10.9822542]
[1731896368215,24.12153862,237.86,237.77,10.13744486]
[1731896369928,24.12153862,237.86,237.79,10.13744486]
[1731896370119,0.34465462,237.86,237.79,10.13744486]
[1731896371014,6.2549,237.89,237.83,10.13744486]
[1731896371897,0.21916462,237.9,237.83,10.13744486]
[1731896372308,0.12549,237.89,237.83,10.13744486]
[1731896372717,0.12549,237.89,237.76,10.5148]
[1731896372718,6.2549,237.94,237.87,10.13744486]
[1731896373439,15.4724,237.99,237.87,10.13744486]
[1731896373440,14.33974486,237.97,237.87,10.13744486]
[1731896374106,0.09367462,237.96,237.87,10.13744486]
[1731896374411,14.33974486,237.97,237.87,10.13744486]
[1731896374817,24.12153862,237.96,237.87,10.13744486]
[1731896375432,24.12153862,237.96,237.84,10.511]
[1731896375433,23.902374,237.96,237.89,10.13744486]
[1731896375722,36.06654486,237.99,237.91,10.13744486]
[1731896375923,10.13744486,238.01,237.93,10.13744486]
[1731896376104,6.5651,238.04,237.85,35.7367]
[1731896376105,6.5651,238.04,237.95,10.13744486]
[1731896376307,6.5651,238.04,237.97,10.13744486]
[1731896376711,10.23111948,238.03,237.95,10.13744486]
[1731896376924,0.09367462,238.01,237.93,10.13744486]
[1731896377226,0.09367462,237.98,237.91,10.13744486]
[1731896377415,23.87055862,237.98,237.91,10.13744486]
[1731896377617,0.12549,237.97,237.91,10.13744486]
[1731896378713,0.12549,237.97,237.93,10.13744486]
[1731896378912,23.902374,238.02,237.95,10.13744486]
[1731896380228,23.902374,238.02,237.95,14.33994486]
[1731896380734,0.09367462,237.99,237.91,24.84874486]
[1731896382021,0.12549,237.96,237.89,14.34094486]
[1731896382225,0.12549,237.96,237.87,4.2039]
[1731896382226,23.902374,237.94,237.87,4.2039]
[1731896383941,23.902374,237.94,237.88,10.13744486]
[1731896384137,0.09367462,237.95,237.88,10.13744486]
[1731896385228,0.09367462,237.93,237.86,10.5103]
[1731896385810,0.09367462,237.93,237.87,10.13744486]
[1731896386220,23.902374,237.94,237.87,10.13744486]
[1731896386435,24.027864,237.96,237.89,10.13744486]
[1731896386843,0.09367462,237.95,237.89,10.13744486]
[1731896388543,0.09367462,237.95,237.89,14.34094486]
[1731896390333,10.13744486,237.99,237.91,10.13744486]
[1731896390531,4.2014,238.02,237.95,10.13744486]
[1731896390740,10.23111948,238.01,237.92,10.13744486]
[1731896391125,0.09367462,237.98,237.9,10.13744486]
[1731896391742,24.12153862,237.98,237.9,10.13744486]
[1731896391932,23.902374,237.98,237.92,10.13744486]
[1731896392148,0.12549,237.98,237.92,10.13744486]
[1731896392318,0.12549,237.99,237.93,4.2029]
[1731896392518,0.25098,238.0,237.93,4.2029]
[1731896393722,23.902374,238.0,237.94,10.13744486]
[1731896393917,0.12549,238.01,237.94,10.13744486]
[1731896394121,6.5651,238.04,237.96,10.13744486]
[1731896394540,6.5651,238.04,237.97,4.2022]
[1731896395747,21.3229,238.14,238.03,10.13744486]
[1731896395925,31.46034486,238.14,238.07,10.13744486]
[1731896396829,0.09367462,238.13,238.07,10.13744486]
[1731896397446,0.09367462,238.09,238.01,10.13744486]
[1731896397742,23.99604862,238.07,238.01,10.13744486]
[1731896397939,23.902374,238.07,238.01,10.13744486]
[1731896398121,0.12549,238.07,238.01,10.13744486]
[1731896398319,0.12549,238.07,237.99,24.84354486]
[1731896398548,28.102774,238.07,237.99,24.84354486]
[1731896398950,0.12549,238.04,237.99,20.64184486]
[1731896399150,0.12549,238.04,237.99,10.5044]
[1731896399728,0.12549,238.04,237.99,20.64184486]
[1731896400025,0.12549,238.04,237.99,10.5044]
[1731896400223,0.12549,238.04,237.95,14.33994486]
[1731896400224,0.09367462,238.03,237.95,14.33994486]
[1731896400433,0.12549,238.02,237.95,14.33994486]
[1731896402252,0.09367462,238.01,237.95,14.33994486]
[1731896403247,0.09367462,238.01,237.95,10.13744486]
[1731896403425,23.87055862,238.01,237.95,10.13744486]
[1731896403630,0.12549,238.0,237.95,10.13744486]
[1731896403839,0.09367462,237.99,237.91,10.13744486]
[1731896404147,0.12549,237.96,237.9,10.5086]
[1731896404353,0.12549,237.96,237.9,14.712]
[1731896404528,23.776884,237.99,237.93,10.13744486]
[1731896404726,0.12549,238.0,237.95,10.13744486]
[1731896404930,0.12549,238.0,237.9,14.712]
[1731896405251,0.12549,238.0,237.95,10.13744486]
[1731896405948,0.12549,238.0,237.9,14.712]
[1731896405949,0.12549,237.98,237.92,4.203]
[1731896406451,0.09367462,237.97,237.91,10.13744486]
[1731896407027,23.87055862,237.97,237.91,10.13744486]
[1731896407332,23.87055862,237.97,237.9,14.7119]
[1731896407532,23.99604862,237.93,237.85,20.64794486]
[1731896407751,24.027864,237.91,237.83,10.13744486]
[1731896408049,23.776884,237.89,237.82,4.2048]
[1731896408233,10.38842486,237.88,237.8,14.7179]
[1731896408436,0.25098,237.86,237.8,10.5128]
[1731896408741,0.25098,237.86,237.79,14.34274486]
[1731896408742,0.25098,237.86,237.79,10.13744486]
[1731896409057,0.25098,237.84,237.77,10.13744486]
[1731896409548,0.25098,237.84,237.79,10.13744486]
[1731896409756,23.776884,237.85,237.79,10.13744486]
[1731896409944,23.776884,237.89,237.83,10.13744486]
[1731896410265,0.12549,237.89,237.83,10.13744486]
[1731896411126,0.12549,237.89,237.79,14.7186]
[1731896411127,0.09367462,237.86,237.81,10.13744486]
[1731896411347,0.09367462,237.84,237.79,20.65084486]
[1731896411658,0.09367462,237.84,237.79,10.5134]
[1731896411952,0.09367462,237.82,237.75,0.4671542]
[1731896412141,0.09367462,237.82,237.75,10.60459906]
[1731896412339,0.09367462,237.82,237.75,14.81059906]
[1731896412540,0.09367462,237.82,237.77,10.13744486]
[1731896412853,0.09367462,237.82,237.75,14.81059906]
[1731896413554,0.12549,237.81,237.75,14.81059906]
[1731896414244,0.21916462,237.82,237.75,14.81059906]
[1731896414930,23.776884,237.86,237.81,10.13744486]
[1731896415131,10.13744486,237.89,237.76,20.0]
[1731896415357,0.09367462,237.86,237.75,15.1883542]
[1731896415536,0.09367462,237.86,237.78,10.13744486]
[1731896416455,23.99604862,237.84,237.78,10.13744486]
[1731896417038,0.09367462,237.82,237.76,10.13744486]
[1731896417350,0.21916462,237.82,237.76,10.13744486]
[1731896417540,23.99604862,237.82,237.76,10.13744486]
[1731896418530,0.21916462,237.82,237.76,10.13744486]
[1731896422163,0.21916462,237.82,237.76,14.34324486]
[1731896423359,0.21916462,237.8,237.75,10.9823542]
[1731896424970,4.2053,237.79,237.75,0.4671542]
[1731896425147,23.99604862,237.8,237.75,0.4671542]
[1731896425344,23.99604862,237.8,237.76,10.13744486]
[1731896426357,23.776884,237.82,237.78,10.13744486]
[1731896426565,15.6971,237.84,237.8,10.13744486]
[1731896426857,15.6971,237.84,237.75,4.6730542]
[1731896426858,19.9016,237.84,237.78,10.13744486]
[1731896427952,23.902374,237.83,237.78,10.13744486]
[1731896429260,28.107074,237.83,237.78,10.13744486]
[1731896429840,23.902374,237.83,237.78,10.13744486]
[1731896434360,23.902374,237.83,237.78,6.51911368]
[1731896435171,23.402374,237.83,237.78,6.51911368]
[1731896435837,23.402374,237.83,237.77,10.72471368]
[1731896436640,0.21916462,237.82,237.75,10.9823542]
[1731896436847,0.21916462,237.82,237.75,17.50146788]
[1731896437057,0.21916462,237.82,237.75,6.98626788]
[1731896437238,0.21916462,237.8,237.75,6.98626788]
[1731896437658,0.21916462,237.8,237.75,0.4671542]
[1731896437865,0.21916462,237.8,237.75,6.98626788]
[1731896438767,0.21916462,237.8,237.77,6.51911368]
[1731896439558,0.09367462,237.78,237.75,0.4671542]
[1731896440163,0.34465462,237.78,237.75,0.4671542]
[1731896441746,24.12153862,237.76,237.75,0.4671542]
[1731896445277,16.82631368,237.83,237.75,0.4671542]
[1731896445465,4.2044,237.85,237.75,15.1883542]
[1731896445650,0.09367462,237.84,237.8,6.51911368]
[1731896446058,0.09367462,237.84,237.75,15.1883542]
[1731896446368,0.09367462,237.84,237.78,6.51911368]
[1731896447270,0.21916462,237.82,237.75,10.9823542]
[1731896447480,24.12153862,237.8,237.75,0.4671542]
[1731896447661,23.776884,237.8,237.75,6.98626788]
[1731896447967,23.776884,237.8,237.75,0.4671542]
[1731896448170,0.09367462,237.79,237.77,6.51911368]
[1731896448954,0.09367462,237.79,237.75,6.98626788]
[1731896450662,23.776884,237.8,237.77,6.51911368]
[1731896450867,23.776884,237.8,237.75,0.4671542]
[1731896450868,23.776884,237.8,237.79,6.51911368]
[1731896451555,25.9072,237.89,237.79,6.51911368]
[1731896451759,25.9072,237.89,237.84,6.51911368]
[1731896452168,0.09367462,237.88,237.82,6.51911368]
[1731896452360,25.9072,237.89,237.82,6.51911368]
[1731896452556,25.9072,237.89,237.79,4.2052]
[1731896452764,0.09367462,237.85,237.79,6.51911368]
[1731896453674,6.6127883,237.88,237.79,6.51911368]
[1731896453860,0.12549,237.85,237.79,6.51911368]
[1731896455459,0.09367462,237.84,237.79,6.51911368]
[1731896457673,0.09367462,237.84,237.79,10.72441368]
[1731896460276,0.09367462,237.82,237.75,10.9823542]
[1731896460475,0.09367462,237.82,237.76,6.51911368]
[1731896460779,0.09367462,237.82,237.75,15.1882542]
[1731896460780,0.21916462,237.8,237.75,15.1882542]
[1731896461090,0.12549,237.82,237.78,6.51911368]
[1731896461381,0.12549,237.82,237.8,6.51911368]
[1731896461758,6.59356661,237.91,237.81,35.0596]
[1731896461976,47.54106425,237.98,237.9,6.51911368]
[1731896461977,27.76501368,237.98,237.9,6.51911368]
[1731896462221,31.96701368,237.98,237.9,6.51911368]
[1731896462392,25.4479,237.98,237.9,10.72241368]
[1731896462687,0.1,238.04,237.9,10.72241368]
[1731896462688,25.4469,238.04,237.96,6.51911368]
[1731896462891,4.2008,238.05,237.99,6.51911368]
[1731896463264,4.2008,238.05,237.97,6.51911368]
[1731896463672,0.09367462,238.04,237.97,6.51911368]
[1731896463877,4.29467462,238.04,237.97,6.51911368]
[1731896464072,10.8137883,238.04,237.85,34.7151]
[1731896464275,0.09367462,238.02,237.94,10.17194602]
[1731896464488,0.09367462,238.0,237.94,10.17194602]
[1731896464681,0.21916462,238.0,237.94,10.17194602]
[1731896465185,0.21916462,238.0,237.96,10.17194602]
[1731896465478,0.12549,238.01,237.96,10.17194602]
[1731896465895,23.776884,238.02,237.96,10.17194602]
[1731896466067,23.87055862,238.04,237.96,10.17194602]
[1731896466262,0.09367462,238.02,237.96,10.17194602]
[1731896466475,14.37244602,238.07,238.0,10.17194602]
[1731896466795,15.0202,238.1,238.04,10.17194602]
[1731896467166,0.09367462,238.09,238.04,10.17194602]
[1731896467475,15.0202,238.1,238.02,10.17194602]
[1731896467476,19.2202,238.1,238.02,10.17194602]
[1731896468063,10.17194602,238.07,237.99,10.5044]
[1731896468384,0.09367462,238.04,237.96,14.37414602]
[1731896468587,24.12153862,238.04,237.96,14.37414602]
[1731896469084,24.12153862,238.04,237.96,10.17194602]
[1731896469264,28.32243862,238.04,237.96,10.17194602]
[1731896469462,24.12153862,238.04,237.96,14.37424602]
[1731896470568,24.12153862,238.04,237.98,10.17194602]
[1731896470872,0.09367462,238.02,237.96,10.17194602]
[1731896471179,0.21916462,238.02,237.96,10.17194602]
[1731896472393,0.09367462,238.01,237.96,10.17194602]
[1731896472566,0.21916462,238.01,237.96,10.17194602]
[1731896472766,10.17194602,238.09,238.0,10.17194602]
[1731896472966,14.37134602,238.13,237.97,6.367]
[1731896473187,10.17194602,238.15,238.08,10.17194602]
[1731896473882,0.09367462,238.14,238.08,10.17194602]
[1731896474178,14.37094602,238.15,238.08,10.17194602]
[1731896474672,14.37094602,238.15,238.06,14.37244602]
[1731896475486,28.227064,238.14,238.06,14.37244602]
[1731896475688,0.09367462,238.13,238.06,14.37244602]
[1731896476008,0.12549,238.12,238.06,14.37244602]
[1731896476473,0.34465462,238.13,238.06,14.37244602]
[1731896476680,10.17194602,238.07,237.98,30.5047]
[1731896476881,0.09367462,238.01,237.94,20.3291]
[1731896477071,0.12549,238.02,237.95,10.17194602]
[1731896477271,0.09367462,238.01,237.95,10.17194602]
[1731896477576,23.776884,238.03,237.99,10.17194602]
[1731896477777,23.776884,238.03,238.02,10.17194602]
[1731896479481,4.1996,238.12,238.02,10.17194602]
[1731896479682,23.776884,238.11,238.05,10.17194602]
[1731896480388,0.09367462,238.1,238.07,10.17194602]
[1731896481092,10.5943,238.23,238.09,10.17194602]
[1731896481292,16.5039,238.17,238.12,10.17194602]
[1731896481793,4.1978,238.22,238.14,10.17194602]
[1731896481983,0.09367462,238.21,238.14,10.17194602]
[1731896482495,10.26562064,238.21,238.12,10.17194602]
[1731896482872,24.12153862,238.19,238.12,10.17194602]
[1731896483391,24.027864,238.19,238.12,10.17194602]
[1731896484283,23.99604862,238.18,238.12,10.17194602]
[1731896484483,0.12549,238.17,238.12,10.17194602]
[1731896486001,4.198,238.21,238.14,10.17194602]
[1731896486188,10.17194602,238.19,238.1,10.17194602]
[1731896486394,0.09367462,238.14,238.06,26.75544602]
[1731896486593,0.09367462,238.14,238.06,10.17194602]
[1731896486798,0.09367462,238.1,238.02,10.17194602]
[1731896486973,0.09367462,238.1,237.97,10.5053]
[1731896486974,0.09367462,238.06,237.98,10.17194602]
[1731896487182,23.776884,238.04,237.98,10.17194602]
[1731896488886,23.776884,238.05,237.98,10.17194602]
[1731896489608,23.776884,238.05,237.96,10.17194602]
[1731896489609,0.34465462,238.04,237.96,10.17194602]
[1731896489810,23.776884,238.05,237.98,10.17194602]
[1731896490301,33.94883002,238.05,237.96,14.37424602]
[1731896490522,33.94883002,238.05,237.96,20.67784602]
[1731896490880,38.14973002,238.05,237.96,20.67784602]
[1731896491902,38.14973002,238.05,237.96,24.88014602]
[1731896492222,27.977784,238.05,237.98,10.17194602]
[1731896493283,23.1804,238.12,238.02,10.17194602]
[1731896493284,4.2001,238.09,238.02,10.17194602]
[1731896494089,10.17194602,238.11,237.96,10.17194602]
[1731896494090,16.73935643,238.16,238.07,10.17194602]
[1731896494295,23.0804,238.18,238.05,10.17194602]
[1731896494296,10.17194602,238.14,238.05,10.17194602]
[1731896494614,10.17194602,238.12,238.03,10.17194602]
[1731896495602,23.776884,238.11,238.04,4.2009]
[1731896496414,23.902374,238.07,238.02,10.5029]
[1731896496583,23.902374,238.07,238.0,4.2016]
[1731896496584,23.776884,238.05,238.0,4.2016]
[1731896496782,23.776884,238.05,238.01,10.17194602]
[1731896497688,23.776884,238.07,238.01,10.17194602]
[1731896497998,23.776884,238.07,238.01,14.37334602]
[1731896499015,23.776884,238.07,237.99,10.17194602]
[1731896499213,27.977284,238.07,237.99,10.17194602]
[1731896499396,23.776884,238.03,237.97,10.17194602]
[1731896499758,23.776884,238.03,237.95,10.17194602]
[1731896500403,23.776884,238.05,237.97,10.17194602]
[1731896500707,23.776884,238.05,237.99,10.17194602]
[1731896500894,23.776884,238.07,237.99,10.17194602]
[1731896501092,23.776884,238.08,238.01,10.17194602]
[1731896501295,0.12549,238.08,238.01,10.17194602]
[1731896502500,4.1994,238.13,238.05,10.17194602]
[1731896503688,10.17194602,238.12,238.02,20.0]
[1731896503987,10.17194602,238.12,238.03,10.17194602]
[1731896504191,10.17194602,238.12,238.03,14.37294602]
[1731896504618,23.776884,238.11,238.03,14.37294602]
[1731896505216,10.42292602,238.1,237.97,27.0985]
[1731896505389,10.17194602,238.06,237.98,10.17194602]
[1731896505596,23.776884,238.03,237.97,10.5054]
[1731896505795,23.776884,238.03,237.96,10.17194602]
[1731896506109,23.776884,238.03,237.95,4.2024]
[1731896506490,0.25098,238.0,237.92,20.67934602]
[1731896506691,0.25098,238.0,237.92,24.88234602]
[1731896506692,23.776884,237.99,237.92,24.88234602]
[1731896506929,0.12549,237.98,237.92,10.5074]
[1731896507251,23.776884,237.97,237.9,14.37524602]
[1731896508300,0.12549,237.98,237.9,14.37524602]
[1731896508915,0.12549,237.98,237.9,24.88384602]
[1731896510526,0.25098,237.98,237.9,24.88384602]
[1731896510696,23.776884,237.97,237.9,24.88384602]
[1731896512221,10.17194602,238.0,237.92,10.17194602]
[1731896512420,6.5548,238.04,237.98,10.17194602]
[1731896513128,15.1294,238.06,237.98,10.17194602]
[1731896513329,19.3301,238.06,237.98,10.17194602]
[1731896514417,4.29447462,238.05,237.98,10.17194602]
[1731896515209,0.25098,238.04,237.96,10.17194602]
[1731896515408,0.09367462,238.03,237.95,10.5062]
[1731896515607,0.09367462,238.03,237.94,10.17194602]
[1731896516528,24.027864,238.01,237.94,10.17194602]
[1731896517526,0.25098,238.01,237.94,10.17194602]
[1731896517701,23.776884,238.0,237.96,10.17194602]
[1731896521241,27.978584,238.0,237.96,10.17194602]
[1731896523237,0.25098,237.99,237.92,10.17194602]